Cogmind - Beta 13 @@@ ROGUE MODE // 2024.03.31 @ 13:54:17 Player: DoFeek Result: Destroyed by H-55 Commando with Assault Rifle Performance ------------- Evolutions (2) 1000 Regions Visited (3) 600 Robots Destroyed (74) 370 Value Destroyed (1908) 1908 Prototype IDs (6) 120 Alien Tech Used (0) 0 Bonus (61) 61 TOTAL SCORE: 4059 Bonus ------- High Alert Combat Kills 61 Cogmind --------- Core Integrity 0/550 Matter 300/300 Energy 100/100 System Corruption 0% Temperature Cool (0) Movement Core (800) Ox15 Location -8/Materials Parts ------- > --- POWER (1) -------- (None) > --- PROPULSION (4) --- (None) > --- UTILITY (3) ------ High-capacity Storage Unit > --- WEAPON (3) ------- Mace Mace Maul > --- INVENTORY (20) --- High-capacity Storage Unit Medium Laser Mini Grenade Launcher Mini Grenade Launcher Mini Grenade Launcher Mini Grenade Launcher Hammer Mace Maul Maul Peak State ------------ > --- POWER ------------ Light Nuclear Core > --- PROPULSION ------- Medium Treads Medium Treads Medium Treads Medium Treads > --- UTILITY ---------- High-capacity Storage Unit > --- WEAPON ----------- Mace Mace Maul > --- INVENTORY -------- Light Treads Light Treads Light Treads Light Treads Light Treads Light Treads Improved Treads High-capacity Storage Unit Medium Laser Mini Grenade Launcher Mini Grenade Launcher Mini Grenade Launcher Mini Grenade Launcher Hammer Mace Mace Maul Maul Heavy Hammer [Rating: 28] Favorites ----------- Power Ion Engine Engine Ion Engine Power Core Light Nuclear Core Propulsion Light Treads Treads Light Treads Utility High-capacity Storage Unit Storage High-capacity Storage Unit Weapon Mace Ballistic Gun Assault Rifle Impact Weapon Mace Build | -11 -10 -9 -8 ------- Run | Yrd Mat Mat Mat Slots Evolved 4 | . . 2 2 Power . | . . . . Propulsion 2 | . . 1 1 Utility 1 | . . . 1 Weapon 1 | . . 1 . Parts Attached 33 | 4 7 10 12 Power 3 | 1 . 2 . Engine 2 | 1 . 1 . Core 1 | . . 1 . Reactor . | . . . . Propulsion 16 | 2 2 5 7 Treads 16 | 2 2 5 7 Leg . | . . . . Wheel . | . . . . Hover . | . . . . Flight . | . . . . Utility 3 | 1 1 . 1 Device . | . . . . Storage 3 | 1 1 . 1 Processor . | . . . . Hackware . | . . . . Protection . | . . . . Artifact . | . . . . Weapon 11 | . 4 3 4 Energy Gun . | . . . . Energy Cannon . | . . . . Ballistic Gun 2 | . 2 . . Ballistic Cannon . | . . . . Launcher . | . . . . Special Weapon . | . . . . Impact Weapon 9 | . 2 3 4 Slashing Weapon . | . . . . Piercing Weapon . | . . . . Special Melee Weapon . | . . . . Unidentified Prototypes . | . . . . Parts Lost 14 | . . 4 10 Power 3 | . . 2 1 Propulsion 9 | . . 2 7 Utility . | . . . . Weapon 2 | . . . 2 Highest Loss Streak 6 | . . 1 6 To Critical Strikes . | . . . . Average Slot Usage (%) 74 | . 84 77 49 Engine 6 | . 14 4 . Core 1 | . . 1 1 Treads 24 | . 27 27 12 Storage 11 | . 14 11 9 Ballistic Gun 1 | . 5 . . Impact Weapon 28 | . 22 32 26 Naked Turns . | . . . . Heaviest Build 52 | 10 49 52 52 Greatest Support 112 | 40 40 63 112 Greatest Overweight (x) 15 | . 1 1 15 Average Overweight (x) 1 | . . . 4 Largest Inventory Capacity 20 | 8 20 20 20 Average Capacity 19 | 7 19 20 20 Most Carried 20 | 5 13 17 20 Average Carried 11 | 3 9 13 11 Final Capacity 20 | 8 20 20 20 Final Carried 16 | 4 12 16 10 Class Distribution -------------------- 100% | Mutant Dominant Class ---------------- Mutant | -10/Materials Mutant | -9/Materials Mutant | -8/Materials Resources | -11 -10 -9 -8 ----------- Run | Yrd Mat Mat Mat Matter Collected 581 | 136 240 95 110 Remotely . | . . . . Salvage Created 2290 | . 302 1329 659 Parts 62 | . 17 31 14 Haulers Intercepted 1 | . . 1 . Recyclers Shooed 1 | . . 1 . Parts Field Recycled . | . . . . Retrieved Matter . | . . . . Parts Self-Destructed . | . . . . Prevented . | . . . . Kills | -11 -10 -9 -8 ------- Run | Yrd Mat Mat Mat Combat Hostiles Destroyed 49 | . 7 25 17 Melee 23 | . 1 10 12 Guns 5 | . 5 . . Classes Destroyed 13 | . 3 8 2 Worker 8 | . . 6 2 Builder 3 | . . 3 . Tunneler 1 | . . 1 . Hauler 1 | . . 1 . Recycler 3 | . . 3 . Mechanic 1 | . . . 1 Operator 3 | . 1 2 . Watcher 5 | . 1 4 . Swarmer 10 | . . 6 4 Grunt 28 | . 7 10 11 Brawler 1 | . . 1 . Sentry 8 | . . 8 . Hunter 2 | . . . 2 Best Kill Streak 13 | . 5 6 13 Combat Bots Only 8 | . 5 3 8 Max Kills in Single Turn 1 | . 1 1 1 Gunslinging . | . . . . Exploded . | . . . . Melee 1 | . 1 1 1 Uniques/NPCs Destroyed . | . . . . Combat | -11 -10 -9 -8 -------- Run | Yrd Mat Mat Mat Hostile Shots Fired 429 | . 42 166 221 Missed 93 | . 8 31 54 Damage Taken 3964 | . 375 1546 2043 Core 955 | . 78 316 561 Absorbed by Shields . | . . . . Regen/Repaired (Parts) 421 | . 154 267 . Core Remaining (%) 63 | 100 68 21 . Volleys Fired 11 | . 11 . . Largest 2 | . 2 . . Hottest 40 | . 40 . . Shots Fired 22 | . 22 . . Gun 22 | . 22 . . Cannon . | . . . . Launcher . | . . . . Special . | . . . . Kinetic 22 | . 22 . . Thermal . | . . . . Explosive . | . . . . Electromagnetic . | . . . . Robot Hit Streak 16 | . 16 . . Robot Miss Streak 2 | . 2 . . Penetration Max . | . . . . Secondary Targets . | . . . . Shots Hit Robots 183 | . 26 108 49 Core Hits 35 | . 12 10 13 Critical Kills 7 | . . 4 3 Critical Parts Destroyed 31 | . . 21 10 Critical Strikes 39 | . . 26 13 Smash 39 | . . 26 13 Melee Attacks 228 | . 11 148 69 Impact 228 | . 11 148 69 Slashing . | . . . . Piercing . | . . . . Sneak Attacks 26 | . 1 22 3 Combat Hostiles . | . . . . Follow-up Attacks 48 | . . 32 16 Damage Inflicted 6635 | . 573 4196 1866 Guns 231 | . 231 . . Cannons . | . . . . Explosions . | . . . . Melee 6404 | . 342 4196 1866 Ramming . | . . . . Kinetic 231 | . 231 . . Thermal . | . . . . Explosive . | . . . . Electromagnetic . | . . . . Impact 6404 | . 342 4196 1866 Slashing . | . . . . Piercing . | . . . . Highest Corruption . | . . . . Average Corruption . | . . . . Corruption Purged . | . . . . Corruption Blocked . | . . . . Overload Shots . | . . . . Overflow Damage 2219 | . 21 1569 629 Projectiles . | . . . . Explosions . | . . . . Melee 2219 | . 21 1569 629 Knockbacks 29 | . . 17 12 Impact 29 | . . 17 12 Kinetic . | . . . . Secondary . | . . . . Self-Inflicted Damage . | . . . . Shots . | . . . . Rammed . | . . . . Targets Rammed . | . . . . Kicked . | . . . . Crushed . | . . . . Highest Temperature 7 | . 5 5 7 Average Temperature 4 | . 4 3 6 Received Heat Transfer 1545 | . 204 522 819 Siege Activations . | . . . . Robots Corrupted . | . . . . Combat Hostiles . | . . . . Parts Fried 47 | . 1 37 9 Impact Corruptions 94 | . 2 68 24 Robots Melted . | . . . . Combat Hostiles . | . . . . Parts Melted . | . . . . Heat Transferred . | . . . . Parts Sabotaged . | . . . . Parts Stolen . | . . . . Parts Stripped . | . . . . Power Chain Reactions . | . . . . Alert | -11 -10 -9 -8 ------- Run | Yrd Mat Mat Mat Peak Influence 553 | . 155 363 553 Initial 146 | . . 2 146 Average 166 | . 31 183 383 Maximum Alert Level 2 | . . 1 2 Low Security (%) 58 | 100 100 44 14 Level 1 28 | . . 55 19 Level 2 12 | . . . 66 Level 3 . | . . . . Level 4 . | . . . . Level 5 . | . . . . High Security . | . . . . Max Security . | . . . . Squads Dispatched 12 | . 5 3 4 Investigation 5 | . 2 1 2 Extermination . | . . . . Reinforcement 7 | . 3 2 2 Assault . | . . . . Garrison . | . . . . Intercept . | . . . . Searches Triggered . | . . . . Construction Impeded . | . . . . Haulers Reinforced . | . . . . Active Scanning Responses . | . . . . Cargo Convoy Interrupts . | . . . . Stealth | -11 -10 -9 -8 --------- Run | Yrd Mat Mat Mat Distress Signals 13 | . 3 4 6 Communications Jammed . | . . . . Distress Signals . | . . . . Times Spotted 91 | . 10 45 36 Peak Tracking Total 10 | . 5 5 10 Tactical Retreats 10 | . . 2 8 Traps | -11 -10 -9 -8 ------- Run | Yrd Mat Mat Mat Traps Triggered . | . . . . Indirectly . | . . . . Trap Hack Attempts . | . . . . Triggered . | . . . . Disarmed . | . . . . Reprogrammed . | . . . . Reused . | . . . . Traps Extracted . | . . . . Installed . | . . . . Triggered 1 | . . . 1 Machines | -11 -10 -9 -8 ---------- Run | Yrd Mat Mat Mat Machines Disabled . | . . . . Max in Single Turn . | . . . . Machines Repaired . | . . . . Machines Dismantled . | . . . . Machines Sabotaged . | . . . . Overloaded Fab Kills . | . . . . Hacking | -11 -10 -9 -8 --------- Run | Yrd Mat Mat Mat Machines Accessed 16 | . 5 10 1 Terminals 8 | . 3 5 . Fabricators . | . . . . Repair Stations 3 | . 1 2 . Recycling Units 2 | . 1 1 . Scanalyzers 3 | . . 2 1 Garrison Access . | . . . . Total Hacks 48 | . 13 31 4 Successful 33 | . 9 20 4 Failed 15 | . 4 11 . Catastrophic 2 | . 1 1 . Database Lockouts . | . . . . Manual . | . . . . Terminals 17 | . 7 10 . Fabricators . | . . . . Repair Stations 13 | . 5 8 . Recycling Units 2 | . 1 1 . Scanalyzers 16 | . . 12 4 Garrison Access . | . . . . Terminal Hacks 9 | . 4 5 . Prototype ID Bank 3 | . 2 1 . Level Access Points 1 | . . 1 . Branch Access Points 1 | . . 1 . Emergency Access Points 1 | . 1 . . Alert Level 1 | . . 1 . Unreport Threat 1 | . . 1 . Registered Components 1 | . 1 . . Fabricator Hacks . | . . . . Repair Station Hacks 10 | . 4 6 . Scan Component 5 | . 2 3 . Repair 5 | . 2 3 . Recycling Unit Hacks 2 | . 1 1 . Report Inventory 2 | . 1 1 . Scanalyzer 12 | . . 8 4 Insert Component 6 | . . 4 2 Analyze 6 | . . 4 2 Garrison Access Hacks . | . . . . Unauthorized Hacks . | . . . . Terminals . | . . . . Fabricators . | . . . . Repair Stations . | . . . . Recycling Units . | . . . . Scanalyzers . | . . . . Garrison Access . | . . . . Data Cores Recovered . | . . . . Used . | . . . . Hacking Detections 12 | . 3 8 1 Full Trace Events 3 | . 1 1 1 Feedback Events . | . . . . Feedback Blocked . | . . . . Robot Schematics Acquired . | . . . . Robots Built . | . . . . Authchips . | . . . . Time . | . . . . Total Robot Build Rating . | . . . . Part Schematics Acquired 6 | . . 4 2 Parts Built . | . . . . Authchips . | . . . . Time . | . . . . Total Part Build Rating . | . . . . Parts Repaired 5 | . 2 3 . Time 142 | . 52 90 . Parts Recycled . | . . . . Recycled Matter . | . . . . Retrieved Matter . | . . . . Retrieved Components . | . . . . Parts Scanalyzed 6 | . . 4 2 Part Schematics Acquired 6 | . . 4 2 Parts Damaged . | . . . . Bothacking | -11 -10 -9 -8 ------------ Run | Yrd Mat Mat Mat Used RIF Installer . | . . . . Robots Hacked . | . . . . Non-combat . | . . . . Combat . | . . . . Robot Hacks Applied . | . . . . Relay Couplers Released . | . . . . Fabnet Peak Effective % . | . . . . Robots Rewired . | . . . . Allies Hacked . | . . . . Hacks Repelled . | . . . . Allies | -11 -10 -9 -8 -------- Run | Yrd Mat Mat Mat Total Allies . | . . . . Largest Group . | . . . . Highest-Rated Group . | . . . . Highest-Rated Ally . | . . . . Total Orders . | . . . . Ally Attacks . | . . . . Total Damage . | . . . . Kills . | . . . . Allies Corrupted . | . . . . Allies Melted . | . . . . Intel | -11 -10 -9 -8 ------- Run | Yrd Mat Mat Mat Robot Analysis Total . | . . . . Derelict Logs Recovered . | . . . . Drone Launches . | . . . . Drone Recoveries . | . . . . Exploration | -11 -10 -9 -8 ------------- Run | Yrd Mat Mat Mat Turns Passed 4246 | 65 1435 1948 798 Spaces Moved 1494 | 43 547 750 154 Core 56 | 13 . . 43 Treads 1438 | 30 547 750 111 Legs . | . . . . Wheels . | . . . . Hover . | . . . . Flight . | . . . . Fastest Speed 50 | 50 160 160 160 Average Speed 223 | 126 237 190 369 Slowest Speed 800 | 160 240 240 800 Overloaded Moves . | . . . . Propulsion Burnouts . | . . . . Robots Hopped . | . . . . Cave-ins Triggered . | . . . . Exploration Rate (%) 48 | 4 95 78 18 Regions Visited 3 Branch Regions . Pre-discovered Areas . | . . . . Known Exits Taken 1 | . . 1 . Unknown Exits Taken 2 | 1 1 . . Scrap Searched . | . . . . Spaces Dug . | . . . . Terrain Destroyed . | . . . . Melee . | . . . . Projectile . | . . . . AOE . | . . . . Terrain Rammed . | . . . . Walls Destroyed . | . . . . Machines Disabled . | . . . . Actions | -11 -10 -9 -8 --------- Run | Yrd Mat Mat Mat Total 2049 | 54 644 1062 289 Wait 297 | . 55 179 63 Move 1491 | 42 546 749 154 Hop . | . . . . Pick Up 41 | 8 13 16 4 Fast Attach . | . . . . Attach 23 | 4 4 9 6 Detach . | . . . . Swap 10 | . 3 1 6 Drop 8 | . 1 3 4 Fire 11 | . 11 . . Melee 168 | . 11 105 52 Ram . | . . . . Kick . | . . . . Crush . | . . . . Escape Stasis . | . . . . Rewire . | . . . . Trap . | . . . . Miscellaneous . | . . . . Route ------- -11/Scrapyard -10/Materials (discovered 3 exits: *Mat x2 / [*Min]) -9/Materials (discovered 4 exits: *Mat x3 / *Min) -8/Materials History --------- Turn | Location | Event 5 | -11/Scrapyard | Discovered new exit (range 16) 66 | -11/Scrapyard | Entered Materials 316 | -10/Materials | Build established: Mutant 513 | -10/Materials | Discovered new exit (range 15) 774 | -10/Materials | Discovered new exit (range 13) 800 | -10/Materials | Derelicts attacked the area 939 | -10/Materials | Repaired Lgt. Treads 966 | -10/Materials | Repaired Lgt. Treads 1206 | -10/Materials | Discovered new exit (range 3) 1501 | -10/Materials | Entered another Materials area 1501 | -9/Materials | Evolved 2 slots: Propulsion x1, Weapon x1 2125 | -9/Materials | Identified exit to Materials 2178 | -9/Materials | Discovered new exit (range 15) 2675 | -9/Materials | Core integrity fell below 50% 2684 | -9/Materials | Repaired Imp. Treads 2956 | -9/Materials | Repaired Mace 2983 | -9/Materials | Repaired Lgt. Treads 3018 | -9/Materials | Identified exit to Mines 3449 | -9/Materials | Entered another Materials area 3449 | -8/Materials | Evolved 2 slots: Propulsion x1, Utility x1 3683 | -8/Materials | Core integrity fell below 50% 3719 | -8/Materials | Destroyed 8 combat bots 3720 | -8/Materials | Lost 6 parts (5n1w) 3894 | -8/Materials | Core integrity fell below 20% 4247 | -8/Materials | Destroyed by H-55 Commando with Assault Rifle Last Messages --------------- K-01 Serf collects debris. K-01 Serf cleans the Material Compactor. K-01 Serf collects debris. K-01 Serf cleans the Material Compactor. R-06 Scavenger collects Aluminum Leg. ALERT: Hostiles spotted, dispatching reinforcements to Terminal M012. K-01 Serf cleans the Material Compactor. W-25 Informer sends out distress signal. K-01 Serf cleans the Material Compactor. G-47 Trooper suffers critical hit (Smash). Destroyed Aluminum Leg. G-47 Trooper system corrupted by crushing effect. G-47 Trooper destroyed. K-01 Serf collects debris. K-01 Serf cleans the Atomic Centrifuge. Slug penetrates Recycling Unit. Recycling Unit disabled. Penetrated by Slug. Map ----- +----------------------------------------------------+ | ?????????????????????????????????????????????? | | ?????????????????????????????????????????????? | | ?????????????????????????????????????????????? | | ?????????????????????????????????????????????? | | ?????????????????????????????????????????????? | | ?????????????????????????????????????????????? | | ?????????????????????????????????????????????? | | ?????????????????????????????????????????????? | | ????????????????????????? ?????????????????? | | ???????????????????????? #???????????????? | | ???????????????????????? #???????????????? | | ???????????????????????? #???????????????? | | ?????????? ???????????? #???????????????? | | ?????????? ???????????? #???????????????? | | ????????? ????????????# #???????????????? | | ?## ?????" ????????????# #???????????????? | | ?# ??""" ????????????# #???????????????? | | ?# """"" #???????????# #???????????????? | | ?+ """ #???????????#w k #???????????????? | | ?# #???????????# #???????????????? | | ?# ###########?# #???????????????? | | ?# # #?# #???????????????? | | ## !!# #?# ####### #??????? | | !!# ### #??????? | | # """ """ + +??????? | | # """ """ ###@ #??????? | | +%""" """ #?# #??????? | | # #?# #??????? | | """ # [ #?# """ #??????? | | """"" ############# """ " h +??????? | | """"" """ Y" #??????? | | """"" ""?????????? | | """ o [ ?????????? | | ?? ?????????? | | ##########+####### ?????????????? | | ##############????????????????? ?????????????? | | # "" #?????????????????????????????????????? | | # ""S #?????????????????????????????????????? | | + "" #?????????????????????????????????????? | | # #?????????????????????????????????????? | | # #?????????????????????????????????????? | | # #?????????????????????????????????????? | | ########?????????????????????????????????????? | | #????????????????????????????????????????????? | | #????????????????????????????????????????????? | | #????????????????????????????????????????????? | | #????????????????????????????????????????????? | | #????????????????????????????????????????????? | | #????????????????????????????????????????????? | | #????????????????????????????????????????????? | +----------------------------------------------------+ Best States ------------- Heat Dissipation 31 Energy Generation 14 Energy Capacity 250 Matter Stores 300 Matter Capacity 300 Sight Range 16 Terrain Scan Density 10 Evasion (%) 50 Recoil Reduction 4 Item Schematics ----------------- Mace | -9/Materials | Scanalyzed Hcp. Storage Unit | -9/Materials | Scanalyzed Hammer | -9/Materials | Scanalyzed Maul | -9/Materials | Scanalyzed Lgt. Treads | -8/Materials | Scanalyzed Imp. Treads | -8/Materials | Scanalyzed Robot Schematics ------------------ None Fabricated ------------ Nothing Alien Tech Used ----------------- None Achievements -------------- None Challenges ------------ None Game ------ Seed ImpactAlphaFlightbrick Manual? 0 Play Time 00:28:29 Cumulative 7.0 hours Start 2024.03.31 @ 13:31:18 End 2024.03.31 @ 13:54:17 Sessions 1 Manual Loads 0 Difficulty Rogue Special Mode None Game No. 16 Rogue 16 Adventurer 0 Explorer 0 Win Type - Total 0 Types 0/0/0/0/0/0/0/0/0 Lore% 7 Gallery% 10 Achievement% 12 Wizard Run 0 Options --------- Layout 1 ASCII 0 Keyboard 0 Movement Numpad Keybinds 0 Fullscreen 1 Font 32/SmallcapsGlow Map View 50x35 Zoom Use 0% Tactical HUD 0 Map Filters NONE Filters NONE Steam 1 RUN: cf6a32ce-6959-4916-8b4c-77a199ffa3e2